Cogmind - Beta 10.2 @@@ ROGUE MODE // 2021.05.05 @ 18:22:53 Player: Trantor Result: Destroyed by as-39389 with Assembled Rifle Performance ------------- Evolutions (0) 0 Regions Visited (4) 800 Robots Destroyed (51) 255 Value Destroyed (829) 829 Prototype IDs (0) 0 Alien Tech Used (0) 0 Bonus (68) 68 TOTAL SCORE: 1952 Bonus ------- Follower Combat Kills 93 Friendly Fire -25 Cogmind --------- Core Integrity 0/250 Matter 264/300 Energy 265/265 System Corruption 5% Temperature Cool (0) Movement Rolling (100) Ox2 Location -9/Mines Parts ------- > --- POWER (1) -------- Improved Ion Engine > --- PROPULSION (2) --- Wheel > --- UTILITY (2) ------ Large Storage Unit Signal Interpreter > --- WEAPON (2) ------- Mini Grenade Launcher > --- INVENTORY (10) --- Ion Engine Wheel Wheel Light Armor Plating Light Armor Plating Beam Rifle Beam Rifle Light Assault Rifle Heavy Assault Rifle Mini Grenade Launcher Peak State ------------ > --- POWER ------------ Improved Ion Engine > --- PROPULSION ------- Wheel Wheel > --- UTILITY ---------- Large Storage Unit Signal Interpreter > --- WEAPON ----------- Heavy Assault Rifle Mini Grenade Launcher > --- INVENTORY -------- Ion Engine Wheel Wheel Light Armor Plating Light Armor Plating Beam Rifle Beam Rifle Assault Rifle Light Assault Rifle Mini Grenade Launcher [Rating: 11] Favorites ----------- Power Ion Engine Engine Ion Engine Propulsion Wheel Wheel Wheel Utility Large Storage Unit Device Heat Sink Storage Large Storage Unit Processor Signal Interpreter Weapon Assault Rifle Energy Gun Small Laser Ballistic Gun Assault Rifle Launcher Grenade Launcher Build | -11 -10 -10 -10 -9 ------- Run | Scr Mat Min Exi Min Slots Evolved . | . . . . . Power . | . . . . . Propulsion . | . . . . . Utility . | . . . . . Weapon . | . . . . . Parts Attached 49 | 6 24 11 . 8 Power 7 | 1 4 2 . . Engine 7 | 1 4 2 . . Core . | . . . . . Reactor . | . . . . . Propulsion 14 | 2 6 5 . 1 Treads . | . . . . . Leg . | . . . . . Wheel 14 | 2 6 5 . 1 Hover . | . . . . . Flight . | . . . . . Utility 5 | 1 4 . . . Device 2 | . 2 . . . Storage 2 | 1 1 . . . Processor 1 | . 1 . . . Hackware . | . . . . . Protection . | . . . . . Artifact . | . . . . . Weapon 23 | 2 10 4 . 7 Energy Gun 7 | 1 5 1 . . Energy Cannon . | . . . . . Ballistic Gun 10 | 1 3 3 . 3 Ballistic Cannon . | . . . . . Launcher 6 | . 2 . . 4 Special Weapon . | . . . . . Impact Weapon . | . . . . . Slashing Weapon . | . . . . . Piercing Weapon . | . . . . . Special Melee Weapon . | . . . . . Unidentified Prototypes . | . . . . . Parts Lost 7 | . 2 2 . 3 Power . | . . . . . Propulsion 5 | . 1 2 . 2 Utility . | . . . . . Weapon 2 | . 1 . . 1 Highest Loss Streak 2 | . 2 1 . 2 Average Slot Usage (%) 95 | . 94 98 100 88 Engine 13 | . 13 14 14 14 Wheel 25 | . 27 26 28 17 Device 4 | . 10 . . . Storage 14 | . 14 14 14 14 Processor 8 | . . 14 14 14 Energy Gun 5 | . 11 3 . . Ballistic Gun 19 | . 11 24 28 22 Launcher 1 | . 3 . . 5 Naked Turns . | . . . . . Heaviest Build 28 | 9 27 28 28 28 Greatest Support 32 | 32 32 32 20 20 Greatest Overweight (x) 7 | . 7 2 1 2 Average Overweight (x) . | . . . 1 1 Largest Inventory Capacity 12 | 6 12 10 10 10 Average Capacity 9 | 5 9 10 10 10 Most Carried 10 | 6 10 10 10 10 Average Carried 9 | 3 8 9 10 10 Final Capacity 10 | 6 10 10 10 10 Final Carried 10 | 6 10 10 10 10 Class Distribution -------------------- 50% | Scavenger-Mutant 49% | Mutant Dominant Class ---------------- Mutant | -10/Materials Scavenger-Mutant | -10/Mines Scavenger-Mutant | -10/Exiles Mutant | -9/Mines Resources | -11 -10 -10 -10 -9 ----------- Run | Scr Mat Min Exi Min Matter Collected 1332 | 236 459 265 . 372 Remotely . | . . . . . Salvage Created 1415 | . 657 295 . 463 Parts 103 | . 54 24 . 25 Haulers Intercepted 2 | . 2 . . . Recyclers Shooed 3 | . 2 1 . . Parts Field Recycled . | . . . . . Retrieved Matter . | . . . . . Parts Self-Destructed . | . . . . . Prevented . | . . . . . Kills | -11 -10 -10 -10 -9 ------- Run | Scr Mat Min Exi Min Combat Hostiles Destroyed 41 | . 15 3 . 23 Guns 20 | . 14 3 . 3 AOE 21 | . 1 . . 20 Classes Destroyed 11 | . 7 2 . 2 Worker 10 | . 6 2 . 2 Builder 2 | . 1 1 . . Tunneler 1 | . . 1 . . Hauler 2 | . 2 . . . Recycler 4 | . 1 1 . 2 Operator 1 | . 1 . . . Swarmer 16 | . 9 . . 7 Grunt 12 | . 6 2 . 4 Brawler 2 | . . . . 2 Sentry 1 | . . 1 . . Assembled 10 | . . . . 10 Best Kill Streak 15 | . 4 2 . 15 Combat Bots Only 10 | . 4 2 . 10 Max Kills in Single Turn 5 | . 2 1 . 5 Gunslinging . | . . . . . Exploded 5 | . 1 . . 5 Melee . | . . . . . Uniques/NPCs Destroyed . | . . . . . Combat | -11 -10 -10 -10 -9 -------- Run | Scr Mat Min Exi Min Damage Taken 1208 | . 496 265 . 447 Core 257 | . 116 44 . 97 Absorbed by Shields . | . . . . . Core Remaining (%) 100 | 100 . . . . Volleys Fired 126 | . 65 27 . 34 Largest 2 | . 2 2 . 2 Hottest 76 | . 76 60 . 60 Shots Fired 246 | . 127 55 . 64 Gun 227 | . 121 55 . 51 Cannon . | . . . . . Launcher 19 | . 6 . . 13 Special . | . . . . . Kinetic 164 | . 61 52 . 51 Thermal 63 | . 60 3 . . Explosive 19 | . 6 . . 13 Electromagnetic . | . . . . . Robot Hit Streak 9 | . 7 9 . 7 Robot Miss Streak 4 | . 3 2 . 4 Penetration Max . | . . . . . Secondary Targets 2 | . 1 1 . . Max Gunslinging Chain 1 | . 1 1 . . Shots Hit Robots 142 | . 72 34 . 36 Core Hits 99 | . 41 15 . 43 Critical Hits . | . . . . . Critical Kills . | . . . . . Critical Parts Destroyed . | . . . . . Melee Attacks . | . . . . . Impact . | . . . . . Slashing . | . . . . . Piercing . | . . . . . Sneak Attacks . | . . . . . Combat Hostiles . | . . . . . Follow-up Attacks . | . . . . . Damage Inflicted 3339 | . 1001 319 . 2019 Guns 1493 | . 743 319 . 431 Cannons . | . . . . . Explosions 1846 | . 258 . . 1588 Melee . | . . . . . Ramming . | . . . . . Kinetic 975 | . 256 288 . 431 Thermal 518 | . 487 31 . . Explosive 1756 | . 168 . . 1588 Electromagnetic 90 | . 90 . . . Impact . | . . . . . Slashing . | . . . . . Piercing . | . . . . . Highest Corruption 5 | . 5 5 5 5 Average Corruption 4 | . 4 5 5 5 Corruption Purged . | . . . . . Effects 97 | . 37 27 14 19 Message Errors 18 | . 7 7 2 2 Matter Fused 19 | . 6 6 5 2 Heat Flow Errors 11 | . 4 3 4 . Energy Discharges 11 | . 3 3 1 4 Data Loss (minor) 13 | . 6 3 2 2 Data Loss (major) 5 | . 2 1 . 2 Misfires 3 | . 2 1 . . Targeting Errors 16 | . 6 3 . 7 Weapon Failures 1 | . 1 . . . Overload Shots . | . . . . . Overflow Damage 29 | . . . . 29 Projectiles . | . . . . . Explosions 29 | . . . . 29 Melee . | . . . . . Knockbacks . | . . . . . Impact . | . . . . . Kinetic . | . . . . . Secondary . | . . . . . Self-Inflicted Damage 132 | . 59 . . 73 Shots 6 | . 3 . . 3 Rammed . | . . . . . Targets Rammed . | . . . . . Kicked . | . . . . . Crushed . | . . . . . Highest Temperature 277 | . 277 182 200 13 Average Temperature 75 | . 90 44 84 4 Received Heat Transfer 222 | . 60 129 . 33 Effects 1 | . 1 . . . Energy Bleed 1 | . 1 . . . Siege Activations . | . . . . . Robots Corrupted . | . . . . . Combat Hostiles . | . . . . . Parts Fried . | . . . . . Impact Corruptions . | . . . . . Robots Melted . | . . . . . Combat Hostiles . | . . . . . Parts Melted 2 | . 2 . . . Heat Transferred 1409 | . 1334 75 . . Parts Sabotaged . | . . . . . Parts Stolen . | . . . . . Parts Stripped . | . . . . . Power Chain Reactions . | . . . . . Missiles Intercepted . | . . . . . Alert | -11 -10 -10 -10 -9 ------- Run | Scr Mat Min Exi Min Peak Influence 310 | . 310 179 . 295 Initial 76 | . . 76 . . Average 131 | . 148 83 . 209 Maximum Alert Level 1 | . 1 . . 1 Low Security (%) 77 | 100 74 100 . 29 Level 1 22 | . 25 . . 70 Level 2 . | . . . . . Level 3 . | . . . . . Level 4 . | . . . . . Level 5 . | . . . . . High Security . | . . . . . Max Security . | . . . . . Squads Dispatched 4 | . 3 . . 1 Investigation 1 | . 1 . . . Extermination . | . . . . . Reinforcement 3 | . 2 . . 1 Assault . | . . . . . Garrison . | . . . . . Intercept . | . . . . . Construction Impeded 1 | . . . . 1 Haulers Reinforced . | . . . . . Stealth | -11 -10 -10 -10 -9 --------- Run | Scr Mat Min Exi Min Distress Signals 1 | . 1 . . . Communications Jammed . | . . . . . Distress Signals . | . . . . . Times Spotted 70 | . 35 6 . 29 Peak Tracking Total 13 | . 5 2 . 13 Tactical Retreats 2 | . 2 . . . Traps | -11 -10 -10 -10 -9 ------- Run | Scr Mat Min Exi Min Traps Triggered 9 | . 9 . . . Indirectly 1 | . 1 . . . Trap Hack Attempts . | . . . . . Triggered . | . . . . . Disarmed . | . . . . . Reprogrammed . | . . . . . Reused . | . . . . . Traps Extracted . | . . . . . Installed . | . . . . . Triggered . | . . . . . Machines | -11 -10 -10 -10 -9 ---------- Run | Scr Mat Min Exi Min Machines Disabled 6 | . 5 . . 1 Max in Single Turn 3 | . 3 . . 1 Machines Sabotaged . | . . . . . Garrisons Compromised . | . . . . . Overloaded Fab Kills . | . . . . . Fab Network Shutdowns . | . . . . . Hacking | -11 -10 -10 -10 -9 --------- Run | Scr Mat Min Exi Min Machines Accessed 10 | . 6 . 4 . Terminals 6 | . 6 . . . Fabricators . | . . . . . Repair Stations . | . . . . . Recycling Units . | . . . . . Scanalyzers . | . . . . . Garrison Access . | . . . . . Total Hacks 71 | . 22 . 49 . Successful 62 | . 13 . 49 . Failed 9 | . 9 . . . Catastrophic 1 | . 1 . . . Database Lockouts . | . . . . . Manual 20 | . 20 . . . Terminals 22 | . 22 . . . Fabricators . | . . . . . Repair Stations . | . . . . . Recycling Units . | . . . . . Scanalyzers . | . . . . . Garrison Access . | . . . . . Terminal Hacks 52 | . 3 . 49 . Record 50 | . 1 . 49 . Part Schematic 1 | . 1 . . . Terminal Index 1 | . 1 . . . Fabricator Hacks . | . . . . . Repair Station Hacks . | . . . . . Recycling Unit Hacks . | . . . . . Scanalyzer . | . . . . . Garrison Access Hacks . | . . . . . Unauthorized Hacks 10 | . 10 . . . Terminals 10 | . 10 . . . Assimilate 4 | . 4 . . . Botnet 6 | . 6 . . . Fabricators . | . . . . . Repair Stations . | . . . . . Recycling Units . | . . . . . Scanalyzers . | . . . . . Garrison Access . | . . . . . Data Cores Recovered . | . . . . . Used . | . . . . . Hacking Detections 6 | . 6 . . . Full Trace Events . | . . . . . Feedback Events . | . . . . . Feedback Blocked . | . . . . . Robot Schematics Acquired . | . . . . . Robots Built . | . . . . . Matter . | . . . . . Time . | . . . . . Total Robot Build Rating . | . . . . . Part Schematics Acquired 1 | . 1 . . . Parts Built . | . . . . . Matter . | . . . . . Time . | . . . . . Total Part Build Rating . | . . . . . Parts Repaired . | . . . . . Time . | . . . . . Parts Recycled . | . . . . . Recycled Matter . | . . . . . Retrieved Matter . | . . . . . Retrieved Components . | . . . . . Parts Scanalyzed . | . . . . . Part Schematics Acquired . | . . . . . Parts Damaged . | . . . . . Bothacking | -11 -10 -10 -10 -9 ------------ Run | Scr Mat Min Exi Min Used RIF Installer . | . . . . . Robots Hacked . | . . . . . Non-combat . | . . . . . Combat . | . . . . . Robot Hacks Applied . | . . . . . Relay Couplers Released . | . . . . . Robots Rewired . | . . . . . Allies Hacked . | . . . . . Hacks Repelled . | . . . . . Allies | -11 -10 -10 -10 -9 -------- Run | Scr Mat Min Exi Min Total Allies 5 | . . 3 . 2 Largest Group 3 | . . 3 3 2 Highest-Rated Group 42 | . . 40 40 42 Highest-Rated Ally 31 | . . 16 16 31 Total Orders . | . . . . . Ally Attacks 26 | . . 20 . 6 Total Damage 314 | . . 253 . 61 Kills 3 | . . 3 . . Allies Corrupted . | . . . . . Allies Melted . | . . . . . Intel | -11 -10 -10 -10 -9 ------- Run | Scr Mat Min Exi Min Robot Analysis Total . | . . . . . Derelict Logs Recovered 3 | . . 2 . 1 Drone Launches . | . . . . . Drone Recoveries . | . . . . . Exploration | -11 -10 -10 -10 -9 ------------- Run | Scr Mat Min Exi Min Turns Passed 3219 | 76 1230 943 535 435 Spaces Moved 2801 | 62 1001 815 595 328 Core 4 | 1 3 . . . Treads . | . . . . . Legs . | . . . . . Wheels 2797 | 61 998 815 595 328 Hover . | . . . . . Flight . | . . . . . Fastest Speed 50 | 50 90 90 90 90 Average Speed 94 | 99 94 96 90 97 Slowest Speed 400 | 100 400 110 90 100 Overloaded Moves . | . . . . . Propulsion Burnouts . | . . . . . Robots Hopped . | . . . . . Cave-ins Triggered . | . . . . . Exploration Rate (%) 70 | 4 97 99 93 57 Regions Visited 4 Branch Regions 3 Pre-discovered Areas 1 | . . . 1 . Known Exits Taken 3 | . 1 1 1 . Unknown Exits Taken 1 | 1 . . . . Scrap Searched 2 | . . 1 . 1 Spaces Dug . | . . . . . Terrain Destroyed 133 | . 21 . . 112 Melee . | . . . . . Projectile . | . . . . . AOE 133 | . 21 . . 112 Terrain Rammed . | . . . . . Walls Destroyed . | . . . . . Machines Disabled . | . . . . . Actions | -11 -10 -10 -10 -9 --------- Run | Scr Mat Min Exi Min Total 3148 | 73 1171 933 594 377 Wait 108 | . 45 58 . 5 Move 2797 | 61 1000 814 594 328 Hop . | . . . . . Pick Up 32 | 6 17 8 . 1 Fast Attach 23 | 6 12 4 . 1 Attach 4 | . 3 1 . . Detach 2 | . 2 . . . Swap 22 | . 9 6 . 7 Drop 34 | . 18 15 . 1 Fire 126 | . 65 27 . 34 Melee . | . . . . . Ram . | . . . . . Kick . | . . . . . Crush . | . . . . . Escape Stasis . | . . . . . Rewire . | . . . . . Trap . | . . . . . Miscellaneous . | . . . . . Route ------- -11/Scrapyard -10/Materials (discovered 4 exits: *Mat x3 / *Min) -10/Mines (discovered 3 exits: *Mat x2 / *Exi) -10/Exiles (discovered 2 exits: *Min x2) -9/Mines (discovered 2 exits: *Mat x2) History --------- Turn | Location | Event 27 | -11/Scrapyard | Discovered new exit (range 16) 77 | -11/Scrapyard | Entered Materials 274 | -10/Materials | Discovered new exit (range 16) 303 | -10/Materials | Build established: Mutant 733 | -10/Materials | Discovered new exit (range 16) 926 | -10/Materials | Discovered new exit (range 11) 1195 | -10/Materials | Discovered new exit (range 16) 1306 | -10/Materials | Identified exit to Mines 1307 | -10/Materials | Entered Mines 1309 | -10/Mines | Core integrity fell below 50% 1387 | -10/Mines | Deemed a non-threat by the Exiles lab entrance 1388 | -10/Mines | Discovered new exit (range 5) 1392 | -10/Mines | Identified exit to Exiles 1417 | -10/Mines | Learned 2 Materials zone layouts 1468 | -10/Mines | Assisted by bots powering up and referring to "LRC-V3" 1480 | -10/Mines | Discovered new exit (range 6) 1485 | -10/Mines | Identified exit to Materials 1640 | -10/Mines | Build established: Scavenger-Mutant 1715 | -10/Mines | Discovered exit to Materials (range 8) 1725 | -10/Mines | Learned Materials terminal intel 2016 | -10/Mines | Found a hidden stash of uninstalled traps 2250 | -10/Mines | Entered Exiles 2250 | -10/Exiles | Accompanied by 3 allies 2264 | -10/Exiles | Discovered new exit (range 15) 2275 | -10/Exiles | Identified exit to Mines 2296 | -10/Exiles | Met 8R-AWN 2311 | -10/Exiles | Met EX-HEX 2377 | -10/Exiles | Met EX-DEC 2395 | -10/Exiles | Learned location of Zion (-7) 2446 | -10/Exiles | Visited The Gauntlet 2586 | -10/Exiles | Met EX-BIN 2774 | -10/Exiles | Discovered exit to Mines (range 14) 2785 | -10/Exiles | Entered Mines 2796 | -9/Mines | Identified exit to Materials 2898 | -9/Mines | Destroyed 7 combat bots 2981 | -9/Mines | Discovered exit to Materials (range 10) 3098 | -9/Mines | Build established: Mutant 3185 | -9/Mines | Core integrity fell below 20% 3207 | -9/Mines | Assembled infested the area 3220 | -9/Mines | Destroyed by as-39389 with Assembled Rifle Last Messages --------------- 03204_ Acquired 16 matter. 03207_ ALERT: Infestation in the mines, dispatching Demolisher response squad. 03207_ Searching scrap... 03207_ Found Terrain Scanner. 03207_ Found Unknown Energy Gun. 03207_ Found Cooling System. 03207_ Found 13 Matter. 03213_ as-49851 destroyed. 03214_ N0-Q9O(g) destroyed. 03216_ as-72105 destroyed. 03216_ Destroyed Asb. Hover Unit. 03218_ Assault Rifle destroyed. 03219_ Wheel destroyed. 03219_ as-86400 destroyed. 03219_ as-84052 destroyed. 03219_ as-34235 destroyed. 03219_ as-87457 destroyed. 03219_ as-65159 destroyed. 03220_ The unstable cave ceiling collapses. Map ----- +----------------------------------------------------+ | ?????????????????????????????????????????????????? | | ?????????????????????????????????????????????????? | | ?????????????????????????????????????????????????? | | ?????????????????????????????????????????????????? | | ?????????????????????????????????????????????????? | | ?????????????????????????????????????????????????? | | ?????????????????????????????????????????????????? | | ?????????????????????????????????????????????????? | | ????????????????????????????? ??????????????????? | | ????????????????????????????? ?????????????????? | | ????????????????????????????? #?? ?????????????? | | ????????????????????????###?? #? ?????????????? | | ???????????????????????## ## ## #?????????????? | | ????????????????# ???## #?????????????? | | ?????????????? ??? #?????????????? | | ??????????????? a #?? #?????????????? | | ???????????????# ##? ##????????????? | | ???????????? ## ## #????????????? | | ????????????a a # # t #????????????? | | ????????????? a # #????????????? | | ??????????????# a # #????????????? | | ??????????????# aa% ###### ??????? | | ??????????????# #?????? | | ?????????????# !=*= #?????? | | ???????????????????? %%=* ## #??????????? | | ???????????????????????# @##* #???????????????? | | ??????????????????????## [# % #???????????????? | | ?????????????????????##t%!# = # #???????????##### | | ?????????????????????# # #???????????# | | ?????????????????????# # ! #####??????## | | ????????????????????# # #??????# | | ???????????????????# ## ### #???????# | | ??????????????????# ###?# #??????## # # | | ????????????????? #???# ########### # | | ???????????????? ### ##???# | | ???????????????# #??#######????# | | ???????????????#####??????????????############## | | ??????????????????????????????????????????###### | | ???????????????#####??????????????????????## | | ??????????????## ##????????????????????## | | ??????????????# ##??????????????????## # | | ????????####### ##?????????????????# # | | ????????# #####?####????????# = # | | ######### ### #????????# *# | | ## # ## ########### | | ###### # ### = | | ############????## ## < ####### ####[ * | | #???????????????## ### ##?????# #### [ | | #??????????????## ##?# ##?###### #?## """ | | #??????????????# ##??## ##?## ## #??## | +----------------------------------------------------+ Best States ------------- Heat Dissipation 35 Energy Generation 12 Energy Capacity 265 Matter Stores 300 Matter Capacity 300 Sight Range 16 Terrain Scan Density 10 Evasion (%) 42 Item Schematics ----------------- Sensor Array | -10/Materials | Hacked Robot Schematics ------------------ None Fabricated ------------ Nothing Alien Tech Used ----------------- None Achievements -------------- None Challenges ------------ None Game ------ Seed MolecularWeldingLeg Manual? 0 Play Time 00:39:37 Cumulative 68.7 hours Start 2021.05.05 @ 17:43:55 End 2021.05.05 @ 18:22:53 Sessions 2 Manual Loads 0 Difficulty Rogue Special Mode None Game No. 40 Rogue 25 Adventurer 15 Explorer 0 Win Type - Total 0 Types 0/0/0/0/0/0/0/0/0 Lore% 34 Gallery% 35 Achievement% 31 Wizard Run 0 Options --------- ASCII 0 Keyboard 1 Movement Vi Keybinds 1 Fullscreen 2 Font 18/SmallcapsGlow Map View 76x50 Tactical HUD 1 Map Filters NONE Filters NONE Steam 1 RUN: 572fd014-9ea6-40bc-9d97-b7bc93775ecd